{"text_format":"1","workbook":"xlsx","n_sheets":4,"sheets":["Form1_Lösemittelbilanz_16","Form1a_Reiniger_16","Form2_Massnahmen_16","Form3_Anlagen_16"],"not_rendered":{"charts":0,"images":1,"macros":1,"external_links":0,"defined_names":6,"comments":1,"pivot_tables":0},"unopened":[],"bounds":{"document_bytes":16777216,"sheet_cells":100000,"rows_first":2000,"rows_last":500,"rows_between":2000,"halvings":0,"cell_chars":16384,"cell_head_chars":4096},"cells_cut":0,"cells_raw":0,"read":"whole","date_system":"1900"}

{"sheet":"Form1_Lösemittelbilanz_16","index":0,"n_rows":87,"n_cols":15,"rows_kept":87,"cut":false,"hidden":false,"merged":[[0,2,0,15],[3,5,3,8],[23,8,24,8],[24,14,25,14]]}
[null,null,"VOC-Reduktion in der Druckindustrie"]
[1,null,"Lösemittelbilanz "]
[]
[null,null,null,null,null,"Erhebungsjahr 2024"]
["Firma:",null,null,null,null," ",null,null,"Datum:"]
[]
[]
["Materialeinkauf und Verbrauch",null,null,null,null,"Verbrauchsmenge",null,null,"Richtwert",null,null,"VOC-Anteil",null,"VOC-Abgabe ab 1.1.2003"]
[null,null," ",null,null,"in kg/Jahr",null,null,"Anteil VOC in %",null,null,"kg/Jahr",null," ",3]
[]
[]
[1," ","Leichtflüchtige Reiniger",null,null,null,null,null," "]
[null,null,"Siedepunkt < 150° C oder Dampfdruck > 1 mbar",null,null,"bitte ausfüllen",null,null,null,null,null,"auto-Berechnung",null,null,"auto-Berechnung"]
[null,null,{"$f":"\"1.1  Gummituchwaschmittel\"","v":"1.1  Gummituchwaschmittel"},null,null,null,20,null,100,null,null,{"$f":"F14","v":0},null,null,{"$f":"L14*$O$9","v":0}]
[null,null,{"$f":"\"1.2  Gummituchregeneriermittel\"","v":"1.2  Gummituchregeneriermittel"},null,null,null,null,null,100,null,null,0,null,null,{"$f":"L15*$O$9","v":0}]
[null,null,{"$f":"\"1.3  Walzenwaschmittel\"","v":"1.3  Walzenwaschmittel"},null,null,null,null,null,100,null,null,0,null,null,0]
[null,null,{"$f":"\"1.4  Test-/Spezialbenzin\"","v":"1.4  Test-/Spezialbenzin"},null,null,null,null,null,100,null,null,0,null,null,0]
[null,null,{"$f":"\"1.5  Industriesprit\"","v":"1.5  Industriesprit"},null,null,null,null,null,100,null,null,0,null,null,0]
[null,null,{"$f":"\"1.6  Farblöser\"","v":"1.6  Farblöser"},null,null,null,null,null,100,null,null,0,null,null,0]
[null,null,{"$f":"\"1.7  Filmreiniger\"","v":"1.7  Filmreiniger"},null,null,null,null,null,100,null,null,0,null,null,0]
[null,null,{"$f":"\"1.8  Sprays\"","v":"1.8  Sprays"},null,null,null,null,null,80,null,null,{"$f":"F21*I21/100","v":0},null,null,0]
[null,null,{"$f":"\"1.9  Andere lösemittelhaltige Hilfsmittel\"","v":"1.9  Andere lösemittelhaltige Hilfsmittel"},null,null,null,null,null,null,null,null,{"$f":"F22*I22/100","v":0},null,null,{"$f":"L22*$O$9","v":0}]
[]
[null,null,null,null,null,null,null,null,"In Vereinbarung bewertet mit"]
[2," ","Hochsiedende Produkte                       gemäss Beilage 1a",null,null,null,null,null,null,null,null," ",null,null,"VOC-abgabepflichtig nach VOC-Anteil"]
[null,null,"Siedepunkt > 150° C und Dampfdruck < 1 mbar",null,null,{"$f":"Form1a_Reiniger_16!I31","v":0},null,null,25,null,null,{"$f":"F26*I26/100","v":0}]
[]
[]
[3," ","VOC-abgabefreie  Produkte                 gemäss Beilage 1a",null,null,{"$f":"Form1a_Reiniger_16!L31","v":0},null,null,0,null,null,null,null,null,"VOC-abgabefrei"]
[]
[]
["1 - 3"," ","Reinigungsmittel gesamt",null,null,{"$f":"SUM(F14:F29)","v":0},null,null," ",null,null,{"$f":"SUM(L14:L29)","v":0},null,null,{"$f":"L32*$O$9","v":0}]
[" "]
[]
[4," ","Feuchtwasserzusätze Offsetdruck"]
[null,null,"4.1  Isopropylalkohol (IPA) oder andere Alkohole (z.B. ISO 800)",null,null,null,null,null,100,null,null,{"$f":"F36","v":0},null,null,{"$f":"L36*$O$9","v":0}]
[null,null,{"$f":"\"4.2  Feuchtmittelzusatz (Gemisch)\"","v":"4.2  Feuchtmittelzusatz (Gemisch)"},null,null,null,null,null,20,null,null,{"$f":"F37*I37/100","v":0},null,null,{"$f":"L37*$O$9","v":0}]
[null,null,{"$f":"\"4.3  Sonstige Feuchmittelzusätze\"","v":"4.3  Sonstige Feuchmittelzusätze"},null,null,null,null,null,null,null,null,{"$f":"F38*I38/100","v":0},null,null,{"$f":"L38*$O$9","v":0}]
[null,null,{"$f":"\"4.4  IPA-Ersatz- und Reduktionsmittel\"","v":"4.4  IPA-Ersatz- und Reduktionsmittel"},null,null,null,null,null,0,null,null," ",null,null,"VOC-abgabefrei"]
[]
[]
[5," ","Lacke mit Lösemittelanteil"]
[null,null,{"$f":"\"5.1  Dispersionslacke (Wasserlack)\"","v":"5.1  Dispersionslacke (Wasserlack)"},null,null,null,null,null,5,null,null,{"$f":"F43*I43/100","v":0},null,null,{"$f":"L43*$O$9","v":0}]
[null,null,{"$f":"\"5.2  Lösemittelhaltige Lacke (Nitro)\"","v":"5.2  Lösemittelhaltige Lacke (Nitro)"},null,null,null,null,null,66,null,null,{"$f":"F44*I44/100","v":0},null,null,{"$f":"L44*$O$9","v":0}]
[]
[]
[6," ","Flexodruck, Siebdruck, Digitaldruck"]
[null,null,{"$f":"\"6.1  Lösemittelbasierende Farben/Lacke\"","v":"6.1  Lösemittelbasierende Farben/Lacke"},null,null,null,null,null,55,null,null,{"$f":"F48*I48/100","v":0},null,null,{"$f":"L44*$O$9","v":0}]
[null,null,{"$f":"\"6.2  Wasserbasierende Farben/Lacke\"","v":"6.2  Wasserbasierende Farben/Lacke"},null,null,null,null,null,10,null,null,{"$f":"F49*I49/100","v":0},null,null,{"$f":"L49*$O$9","v":0}]
[null,null,{"$f":"\"6.3  UV-härtende Farben/Lacke\"","v":"6.3  UV-härtende Farben/Lacke"},null,null,null,null,null,0,null,null," ",null,null,"VOC-abgabefrei"]
[null,null,{"$f":"\"6.4  Lösemittelbasierende Verdünner, Verzögerer,\"","v":"6.4  Lösemittelbasierende Verdünner, Verzögerer,"}]
[null,null,{"$f":"\"       Beschleuniger\"","v":"       Beschleuniger"},null,null,null,null,null,100,null,null,{"$f":"F52*I52/100","v":0},null,null,{"$f":"L52*$O$9","v":0}]
[null,null,"6.5 Digitaldruckfarbe",null,null,null,null,null,null,null,null,{"$f":"F53*I53/100","v":0},null,null,{"$f":"L53*$O$9","v":0}]
[null,null,"6.6 Sonstige VOC-freie Farben und Lacke",null,null,null,null,null,0,null,null," ",null,null,"VOC-abgabefrei"]
[]
[7," ","Kaschierkleber"]
[null,null,{"$f":"\"7.1  Lösemittelbasierende Kleber\"","v":"7.1  Lösemittelbasierende Kleber"},null,null,null,null,null,66,null,null,{"$f":"F57*I57/100","v":0},null,null,{"$f":"L57*$O$9","v":0}]
[null,null,{"$f":"\"7.2  Lösemittelarme Kleber (unter 15 Vol. %)\"","v":"7.2  Lösemittelarme Kleber (unter 15 Vol. %)"},null,null,null,null,null,10,null,null,{"$f":"F58*I58/100","v":0},null,null,{"$f":"L58*$O$9","v":0}]
[null,null,{"$f":"\"7.3  Lösemittelfreie Kleber (UV u.a.)\"","v":"7.3  Lösemittelfreie Kleber (UV u.a.)"},null,null,null,null,null,0,null,null," ",null,null,"VOC-abgabefrei"]
[]
[]
[8," ","Andere lösemittelhaltige Produkte"]
[null,null," ",null,null,null,null,null,null,null,null,{"$f":"F63*I63/100","v":0},null,null,{"$f":"L63*$O$9","v":0}]
[]
[]
["4 - 8",null,"Insgesamt",null,null,{"$f":"SUM(F36:F63)","v":0},null,null,null,null,null,{"$f":"SUM(L36:L63)","v":0},null,null,{"$f":"L66*$O$9","v":0}]
[]
[]
["1 - 8"," ","Gesamtmenge / Kosten",null,null,{"$f":"SUM(F32+F66)","v":0},null,null,null,null,null,{"$f":"SUM(L32+L66)","v":0},null,null,{"$f":"SUM(O32+O66)","v":0}]
[]
[]
[9," ","Offsetfarben (mit 0 % VOC-Anteil bewertet)",null,null,null,null,null,"Formel zur Ermittlung der Bewertungskennzahl:"]
[null,null,{"$f":"\"9.1  Bogenoffsetdruckfarbe\"","v":"9.1  Bogenoffsetdruckfarbe"},null,100,null,null,null,null,null,null,"Gesamtmenge VOC-Anteil  - Lösemittel-Rückgewinnung"]
[null,null,{"$f":"\"9.2  Heatsetfarbe (Rolle mit Trockner)\"","v":"9.2  Heatsetfarbe (Rolle mit Trockner)"},null,null,null,null,null,null,null,null,"Gesamtmenge Farbe (6.1+6.2+6.3+9) in kg"]
[null,null,{"$f":"\"9.3  Coldsetfarbe (Rolle ohne Trockner)\"","v":"9.3  Coldsetfarbe (Rolle ohne Trockner)"}]
[null,null,{"$f":"\"9.4  Formulardruckfarben\"","v":"9.4  Formulardruckfarben"},null,null,null,null,null,null,null,null,"Bewertungskennzahl"]
[]
[" ",null," "]
["6 + 9",null,"Druckfarbe gesamt",null,null,{"$f":"SUM(F48:F54,F73:F76)","v":0},null,null,"  ",null,null,{"$f":"(L69-F83)/F79","v":{"$error":"#DIV/0!"}}]
[]
[null,null,null,null,null,null,null,null," "]
[10,null,"Lösemittel-Rückgewinnung (kg)",null,null,null,null,null,"Beim externen Recycling muss der VOC-Anteil"]
[null,null,"¨ Abluftreinigung         ¨ Abfälle mit VOC-Analyse",null,null,null,null,null,"nach genauer VOC-Analyse angegeben werden."]
[]
[]
["VOC;",null,"Flüchtige organische Verbindungen mit einem Siedepunkt < 240 °C oder einem Dampfdruck  > 0,1 mbar "]
[null,null,"(Definition analog der Verordnung über die VOC-Lenkungsabgabe, VOCV)",null,null,null,null,null,null,null,null," "," ",null," "]

{"sheet":"Form1a_Reiniger_16","index":1,"n_rows":45,"n_cols":22,"rows_kept":45,"cut":false,"hidden":false,"merged":[[0,3,0,21],[0,0,0,2],[20,0,20,2],[22,0,22,2],[2,22,2,46],[2,2,2,21],[17,0,17,2],[6,8,6,11],[3,8,3,9],[19,0,19,2],[7,8,7,11],[3,10,3,20],[6,17,6,20],[3,2,3,6],[7,17,7,20],[44,0,44,2],[37,5,39,20],[41,5,42,20],[44,5,45,20],[41,0,41,2],[37,0,37,2],[33,0,33,20],[26,0,26,2],[10,8,10,11],[15,8,15,9],[18,0,18,2],[14,8,14,9],[28,0,28,2],[27,0,27,2],[25,0,25,2],[21,0,21,2],[24,0,24,2],[23,0,23,2]]}
["Beilage zu Blatt 1",null,null,"VOC-Reduktion in der Druckindustrie"]
["1a",null,"Hochsiedende und VOC-freie Reiniger",null,null,null,null,null,null,null,null,null,null,null,null,null,null,null,null,null,null,"Erhebungsjahr 2024"]
[null,null,"In diesem Formular sind nur Reinigungsmittel aufzuführen, welche unter Ziffer 2 und 3 des Blattes 1 „Lösemittelbilanz“ fallen."]
["Firma:",null,{"$f":"Form1_Lösemittelbilanz_16!C5","v":0},null,null,null,null,null,"Datum:",null,"00.00.2025"]
[]
[]
["Produktename",null,null,null,null,"Lieferant",null,null,"Verbrauchsmenge in ",null,null,null,null,null,"**Viscom-",null,null,"Angaben aus"]
[null,null,null,null,null,null,null,null,"kg/Jahr",null,null,null,null,null,"Liste",null,null,"Sicherheitsdatenblatt"]
[]
[]
[null," ",null,null,null,null,null,1,"Produkt",null,null,null,null,null,null,null,null,"Siede-",null,null,"Dampf-"]
[null,null,null,null,null,null,null,null,null,null,null,null,null,null,null,null,null,"punkt",null,null,"druck"]
[]
[null,null,null,null,null,null,null,null,null,null,null,null,null,null,null,null,null,null,null,null,"Wert MIT"]
[null,null,null,null,null,null,null,null,"*Hoch-",null,null,"VOC- ",null,null,null,null,null,"Temp.",null,null,"Masseinh."]
[null,null,null,null,null,null,null,null,"siedend",null,null,"abgabefrei",null,null,"ja/nein",null,null,"(°C)",null,null,"angeben"]
[]
[null,null,null,null,null,null,null,null,null,null,null,null,null,null,"¨ /   ¨"]
[null,null,null,null,null,null,null,null,null,null,null,null,null,null,"¨ /   ¨"]
[null,null,null,null,null,null,null,null,null,null,null,null,null,null,"¨ /   ¨"]
[null,null,null,null,null,null,null,null,null,null,null,null,null,null,"¨ /   ¨"]
[null,null,null,null,null,null,null,null,null,null,null,null,null,null,"¨ /   ¨"]
[null,null,null,null,null,null,null,null,null,null,null,null,null,null,"¨ /   ¨"]
[null,null,null,null,null,null,null,null,null,null,null,null,null,null,"¨ /   ¨"]
[null,null,null,null,null,null,null,null,null,null,null,null,null,null,"¨ /   ¨"]
[null,null,null,null,null,null,null,null,null,null,null,null,null,null,"¨ /   ¨"]
[null,null,null,null,null,null,null,null,null,null,null,null,null,null,"¨ /   ¨"]
[null,null,null,null,null,null,null,null,null,null,null,null,null,null,"¨ /   ¨"]
[null,null,null,null,null,null,null,null,null,20,null,null,null,null,"¨ /   ¨"]
[]
[null,null,null,null,null,"Summe Reiniger",null,null,{"$f":"SUM(I18:I29)","v":0},null,null,{"$f":"SUM(L18:L29)","v":0}]
[null,null,null,null,null,"Übertrag auf Lösemittelbilanz (Blatt 1)",null,null,"Ziff. 2",null,null,"Ziff. 3"]
[]
["**siehe: www.voc-arm-drucken.ch; wenn NEIN, Siedepunkt und Dampfdruck des Produktes eintragen"]
[]
[null,null,null,null,null,"Legende"]
[]
["VOC",null,null,null,null,"Flüchtige organische Verbindungen mit einem Siedepunkt < 240 °C oder einem Dampfdruck > 0,1 mbar (analog der Verordnung über die VOC-Lenkungsabgabe, VOCV)."]
[]
[]
[]
["*Hochsiedende Produkte",null,null,null,null,"Produkte mit einem Siedepunkt > 150 °C und einem Dampfdruck < 1 mbar. Bei wasserhaltigen Produkten gelten diese Bedingungen für die organischen Anteile des Produkts."]
[]
[]
["**Viscom-Liste",null,null,null,null,"Bitte ankreuzen, wenn das Produkt auf der Viscom-Liste mit Ersatzprodukten zu finden ist. Zum öffnen der Liste bitte hier doppelklicken: "]

{"sheet":"Form2_Massnahmen_16","index":2,"n_rows":98,"n_cols":6,"rows_kept":98,"cut":false,"hidden":false,"merged":[[95,2,98,2],[95,3,98,3],[95,4,98,4],[95,5,98,5],[89,2,91,2],[89,3,91,3],[89,4,91,4],[89,5,91,5],[86,2,88,2],[86,3,88,3],[86,4,88,4],[86,5,88,5],[83,2,85,2],[83,3,85,3],[83,4,85,4],[83,5,85,5],[80,2,82,2],[80,3,82,3],[80,4,82,4],[80,5,82,5],[77,2,79,2],[77,3,79,3],[77,4,79,4],[77,5,79,5],[74,2,76,2],[74,3,76,3],[74,4,76,4],[74,5,76,5],[70,2,73,2],[70,3,73,3],[70,4,73,4],[70,5,73,5],[38,2,41,2],[38,5,41,5],[66,2,69,2],[66,3,69,3],[66,4,69,4],[53,2,55,2],[53,3,55,3],[53,4,55,4],[47,2,49,2],[47,3,49,3],[47,4,49,4],[53,5,55,5],[50,2,52,2],[50,3,52,3],[50,4,52,4],[50,5,52,5],[25,3,27,3],[25,4,27,4],[25,5,27,5],[38,3,41,3],[38,4,41,4],[66,5,69,5],[13,3,15,3],[13,4,15,4],[13,5,15,5],[16,3,18,3],[16,4,18,4],[16,5,18,5],[34,3,37,3],[34,4,37,4],[34,5,37,5],[19,3,21,3],[19,5,21,5],[22,3,24,3],[22,4,24,4],[22,5,24,5],[47,5,49,5],[0,1,0,5],[59,2,65,2],[59,3,65,3],[59,4,65,4],[59,5,65,5],[42,2,46,2],[42,3,46,3],[42,4,46,4],[42,5,46,5],[3,1,3,2],[3,4,3,5],[9,4,12,4],[9,5,12,5],[9,3,12,3],[34,2,37,2],[19,4,21,4]]}
[" ","VOC-Reduktion in der Druckindustrie"]
[2," Massnahmen zur Reduktion der VOC-Emissionen",null,null,null,"Erhebungsjahr 2024"]
[]
["Firma:",{"$f":"Form1_Lösemittelbilanz_16!C5","v":0},null,"Datum:","00.00.2025"]
[" "," "]
[]
[]
[1,"Allgemeine unterstützende Massnahmen",null,"ja / nein","Bemerkungen","Verantwortliche Person"]
[]
[null," ",null,"¨ /   ¨"]
[1.1000000000000001,"VOC-Reduzierung als Unternehmensziel"]
[null,"Umwelt- / Qualitäts-Management (ISO 9001, ISO 14001, EMAS, ...)"]
[]
[null,null,null,"¨ /   ¨"]
[1.2,"Ausgabe verbindlicher Betriebsanweisungen"]
[]
[null,null,null,"¨ /   ¨"]
[1.3,"Regelmässige Mitarbeiterinformation und -schulung"]
[]
[null,null,null,"¨ /   ¨"]
[1.4,"Festgelegte Zuständigkeiten für die Eigenkontrolle"]
[]
[null,null,null,"¨ /   ¨"]
[1.5,"Kundeninformation"]
[]
[null,null,null,"¨ /   ¨"]
[1.6,"Andere Massnahmen"]
[]
[]
["Massnahmen im technischen Bereich"]
[]
[]
[2,"Offsetdruck - Reinigungsarbeiten","Auf welchen Maschinen ?","Beginn (Datum)","Ständig / Versuch","Verantwortliche Person"]
[]
[null,null,null,null,"¨ /   ¨"]
[2.1,"Maschinen Handreinigung"]
[null,"mit hochsiedenden Reinigungsmitteln"]
[]
[null,null,null,null,"¨ /   ¨"]
[2.2000000000000002,"Maschinen Handreinigung"]
[null,"mit VOC-freien Reinigungsmitteln"]
[]
[null,null,null,null,"¨ /   ¨"]
[2.2999999999999998,"Automatische Waschanlagen"]
[null,"Farbwalzen, Gummituch, Gegendruck"]
[null,"Welche Mittel werden eingesetzt?"]
[]
[null,null,null,null,"¨ /   ¨"]
[2.4,"a)  Lösemittel-Rückgewinnungsanlage"]
[]
[null,null,null,null,"¨ /   ¨"]
[null,"b)  Externes Recycling"]
[]
[null,null,null,null,"¨ /   ¨"]
[2.5,"Andere Massnahmen"]
[]
[]
[3,"Offsetdruck - Alkoholreduktion"]
[]
[null,null,null,null,"¨ /   ¨"]
[3.1,"Regelmässige IPA-Konzentrations-"]
[null,"messung und Protokollierung"]
["a)","Ärometer (Spindel) unter Berück-"]
[null,"sichtigung der Dichte der Feuch-"]
[null,"mittelzusätze (Korrekturtabelle)"]
[]
[null,null,null,null,"¨ /   ¨"]
["b)","Andere Messverfahren / -geräte"]
[null,"(Verfahren / Geräte angeben)"]
[]
[null,null,null,null,"¨ /   ¨"]
[3.2,"Feuchtwasseraufbereitungsanlage"]
[null,"an der Maschine"]
[]
[null,null,null,null,"¨ /   ¨"]
[3.3,"Alkoholersatz- bzw. Reduktionsmittel"]
[]
[null,null,null,null,"¨ /   ¨"]
[3.4,"Keramik- oder andere Feuchtwalzen"]
[]
[null,null,null,null,"¨ /   ¨"]
[3.5,"Direktfilmfeuchtwerke"]
[]
[null,null,null,null,"¨ /   ¨"]
[3.6,"Brauchwasseraufbereitung (Umkehrosmose)"]
[]
[null,null,null,null,"¨ /   ¨"]
[3.7,"Wasserloser Offset (Toray)"]
[]
[null,null,null,null,"¨ /   ¨"]
[3.8,"Andere Massnahmen"]
[]
[]
[4,"Sieb- / Flexo- / Tiefdruck"]
[]
[null,null,null,null,"¨ /   ¨"]
[4.0999999999999996,"Für das jeweilige Druckverfahren"]
[null,"geeignete Massnahmen gemäss Beilage"]

{"sheet":"Form3_Anlagen_16","index":3,"n_rows":81,"n_cols":34,"rows_kept":81,"cut":false,"hidden":false,"merged":[[24,27,24,30],[25,27,25,30],[30,27,30,30],[38,27,38,30],[67,9,67,21],[39,27,39,30],[48,27,48,30],[52,27,52,30],[53,27,53,30],[45,27,45,30],[51,27,51,30],[60,9,60,21],[58,9,58,24],[58,27,58,30],[41,27,41,30],[44,27,44,30],[50,27,50,30],[76,9,76,21],[75,9,75,21],[68,9,68,21],[69,9,69,21],[74,9,74,21],[72,9,72,24],[74,27,74,30],[75,27,75,30],[76,27,76,30],[62,27,62,30],[67,27,67,30],[68,27,68,30],[69,27,69,30],[65,27,65,30],[72,27,72,30],[61,9,61,21],[51,12,51,21],[52,12,52,21],[53,12,53,21],[50,12,50,21],[3,24,3,33],[3,3,3,18],[9,28,10,28],[0,3,0,33],[65,9,65,24],[7,9,7,24],[35,9,35,24],[18,9,18,24],[18,27,18,30],[45,12,45,21],[62,9,62,21],[60,27,60,30],[61,27,61,30],[37,27,37,30],[37,15,37,21],[38,15,38,21],[39,15,39,21],[48,9,48,24],[41,15,41,21],[44,12,44,21],[7,27,7,30],[28,27,28,30],[35,27,35,30],[31,27,31,30],[32,27,32,30],[28,9,28,24],[20,27,20,30],[21,27,21,30],[22,27,22,30],[23,27,23,30],[42,27,42,30],[42,9,42,24]]}
[" ",null,null,"VOC-Reduktion in der Druckindustrie"]
[3,null,"Druck- und Beschichtungsanlagen",null,null,null,null,null,null,null,null,null,null,null,null,null,null,null,null,null,null,null,null,null,null,null,null,null,null,null,null,null,null,"Erhebungsjahr 2024"]
[]
["Firma:",null,null,{"$f":"Form1_Lösemittelbilanz_16!C5","v":0},null,null,null,null,null,null,null,null,null,null,null,null,null,null,null,null,null,"Datum:",null,null,"00.00.2025"]
[null,null,null,null,null,null,null,null,null,null,null,null,null,null,null," "]
[]
[null,null,null,null,null,null,null,null,null,null,null,null,null,null,null,null,null,null,null,null,null,null,null,null,null,null,null," "," ",null,null,null,null," "]
["Technische Angaben",null,null,null,null,null,"Format",null,null,"Ausstattung",null,null,null,null,null,null,null,null,null,null,null,null,null,null,null,null,null,"Abluft",null,null,null,null,null,"Bemerkungen"]
[]
[null,null,null,null,null,null,null,null,null,null,null,null,null,null,null,"Waschanlagen",null,null,null,null,null,null,null,null,null,null,null," ","TNV, Ad-/Absorbtion, KNV, Andere"]
[" ",null,null,null,null,null," ",null,null,"Druckwerke",null,null,"Alkoholfeuchtwerke",null,0,"Gummituch",null,null,"Gegendruck",null,null,"Farbwalzen",null,null,"Trocknungsanlagen",null,null,"Anschluss an Abluftreinigung",null,"Verfahren unter Bemerkung","oder in Beilage deklarieren"]
[]
[]
[null,null,null,null,null,null,null,null,null,"Anzahl",null,null,"ja/nein",null,null,"ja/nein",null,null,"ja/nein",null,null,"ja/nein",null,null,"ja/nein",null," ","ja/nein"]
[]
["Druckmaschinen"]
[" "]
[]
[1,null,null,"Bogenoffset",null,null,"Format",null,null,"Ausstattung",null,null,null,null,null,null,null,null,null,null,null,null,null,null,null,null,null,"Abluft",null,null,null,null,null,"Bemerkungen"]
[" "]
[1.1000000000000001,null,null,null,null,null,null,null,null,null,null,null,"¨/¨",null,null,"¨/¨",null,null,"¨/¨",null,null,"¨/¨",null,null,"¨/¨",null,null,"¨/¨"]
[1.2,null,null,null,null,null,null,null,null,null,null,null,"¨/¨",null,null,"¨/¨",null,null,"¨/¨",null,null,"¨/¨",null,null,"¨/¨",null,null,"¨/¨"]
[1.3,null,null,null,null,null,null,null,null,null,null,null,"¨/¨",null,null,"¨/¨",null,null,"¨/¨",null,null,"¨/¨",null,null,"¨/¨",null,null,"¨/¨"]
[1.4,null,null,null,null,null,null,null,null,null,null,null,"¨/¨",null,null,"¨/¨",null,null,"¨/¨",null,null,"¨/¨",null,null,"¨/¨",null,null,"¨/¨"]
[1.5,null,null,null,null,null,null,null,null,null,null,null,"¨/¨",null,null,"¨/¨",null,null,"¨/¨",null,null,"¨/¨",null,null,"¨/¨",null,null,"¨/¨"]
[1.6,null,null,null,null,null,null,null,null,null,null,null,"¨/¨",null,null,"¨/¨",null,null,"¨/¨",null,null,"¨/¨",null,null,"¨/¨",null,null,"¨/¨"]
[]
[]
[2,null,null,"Rollenoffset",null,null,"Format",null,null,"Ausstattung",null,null,null,null,null,null,null,null,null,null,null,null,null,null,null,null,null,"Abluft",null,null,null,null,null,"Bemerkungen"]
[" ",null,null," "]
[2.1,null,null,null,null,null,null,null,null,null,null,null,"¨/¨",null,null,"¨/¨",null,null,"¨/¨",null,null,"¨/¨",null,null,"¨/¨",null,null,"¨/¨"]
[2.2000000000000002,null,null,null,null,null,null,null,null,null,null,null,"¨/¨",null,null,"¨/¨",null,null,"¨/¨",null,null,"¨/¨",null,null,"¨/¨",null,null,"¨/¨"]
[2.2999999999999998,null,null,null,null,null,null,null,null,null,null,null,"¨/¨",null,null,"¨/¨",null,null,"¨/¨",null,null,"¨/¨",null,null,"¨/¨",null,null,"¨/¨"]
[]
[null,null,null,null,null,null,null,null,null,null,null,null,null,null,null,null,null,null,null,null,null,null,null,null,null,0]
[3,null,null,"Tiefdruck",null,null,"Format",null,null,"Ausstattung",null,null,null,null,null,null,null,null,null,null,null,null,null,null,null,null,null,"Abluft",null,null,null,null,null,"Bemerkungen"]
[]
[3.1,null,null,null,null,null,null,null,null,null,null,null,"¨/¨",null,null,null,null,null,null,null,null,null,null,null,"¨/¨",null,null,"¨/¨"]
[3.2,null,null,null,null,null,null,null,null,null,null,null,"¨/¨",null,null,null,null,null,null,null,null,null,null,null,"¨/¨",null,null,"¨/¨"]
[3.3,null,null,null,null,null,null,null,null,null,null,null,"¨/¨",null,null,null,null,null,null,null,null,null,null,null,"¨/¨",null,null,"¨/¨"]
[]
[]
[4,null,null,"Sieb- / Flexo- / Buchdruck",null,null,"Format",null," ","Ausstattung",null,null,null,null,null,null,null,null,null,null,null,null,null,null,null,null,null,"Abluft",null,null,null,null,null,"Bemerkungen"]
[null,null,null," ",null,null,null,null,null,null,null,null,null,null,null,null,null,null,null,null,null," "]
[4.0999999999999996,null,null,null,null,null,null,null,null,null,null,null,null,null,null,null,null,null,null,null,null,null,null,null,"¨/¨",null,null,"¨/¨"]
[4.2,null,null,null,null,null,null,null,null,null,null,null,null,null,null,null,null,null,null,null,null,null,null,null,"¨/¨",null,null,"¨/¨"]
[]
[null,null,null,null,null,null,null,null,null,null,null,null,null,null,null,null,null,null,null,null,null,null,null,null,null,0]
[5,null,null,"Digitaldruck",null,null,"Format",null,null,"Ausstattung",null,null,null,null,null,null,null,null,null,null,null,null,null,null,null,null,null,"Abluft",null,null,null,null,null,"Bemerkungen"]
[]
[5.0999999999999996,null,null,null,null,null,null,null,null,null,null,null,null,null,null,null,null,null,null,null,null,null,null,null,"¨/¨",null,null,"¨/¨"]
[5.2,null,null,null,null,null,null,null,null,null,null,null,null,null,null,null,null,null,null,null,null,null,null,null,"¨/¨",null,null,"¨/¨"]
[5.3,null,null,null,null,null,null,null,null,null,null,null,null,null,null,null,null,null,null,null,null,null,null,null,"¨/¨",null,null,"¨/¨"]
[5.4,null,null,null,null,null,null,null,null,null,null,null,null,null,null,null,null,null,null,null,null,null,null,null,"¨/¨",null,null,"¨/¨"]
[]
[]
["Andere Anlagen"]
[]
[6,null,null,"Separate Lackiermaschinen",null,null,"Format",null,null,"Ausstattung",null,null,null,null,null,null,null,null,null,null,null,null,null,null,null,null,null,"Abluft",null,null,null,null,null,"Bemerkungen"]
[" "]
[6.1,null,null,null,null,null,null,null,null,null,null,null,null,null,null,null,null,null,null,null,null,null,null,null,"¨/¨",null,null,"¨/¨"]
[6.2,null,null,null,null,null,null,null,null,null,null,null,null,null,null,null,null,null,null,null,null,null,null,null,"¨/¨",null,null,"¨/¨"]
[6.3,null,null,null,null,null,null,null,null,null,null,null,null,null,null,null,null,null,null,null,null,null,null,null,"¨/¨",null,null,"¨/¨"]
[5.2]
[]
[7,null,null,"Kaschieranlagen",null,null,"Format",null,null,"Ausstattung",null,null,null,null,null,null,null,null,null,null,null,null,null,null,null,null,null,"Abluft",null,null,null,null,null,"Bemerkungen"]
[]
[7.1,null,null,null,null,null,null,null,null,null,null,null,null,null,null,null,null,null,null,null,null,null,null,null,"¨/¨",null,null,"¨/¨"]
[7.2,null,null,null,null,null,null,null,null,null,null,null,null,null,null,null,null,null,null,null,null,null,null,null,"¨/¨",null,null,"¨/¨"]
[7.3,null,null,null,null,null,null,null,null,null,null,null,null,null,null,null,null,null,null,null,null,null,null,null,"¨/¨",null,null,"¨/¨"]
[6.2]
[]
[8,null,null,"Andere Anlagen mit Lösemitteleinsatz",null,null,"Format",null,null,"Ausstattung",null,null,null,null,null,null,null,null,null,null,null,null,null,null,null,null,null,"Abluft",null,null,null,null,null,"Bemerkungen"]
[]
[8.1,null,null,null,null,null,null,null,null,null,null,null,null,null,null,null,null,null,null,null,null,null,null,null,"¨/¨",null,null,"¨/¨"]
[8.1999999999999993,null,null,null,null,null,null,null,null,null,null,null,null,null,null,null,null,null,null,null,null,null,null,null,"¨/¨",null,null,"¨/¨"]
[8.3000000000000007,null,null,null,null,null,null,null,null,null,null,null,null,null,null,null,null,null,null,null,null,null,null,null,"¨/¨",null,null,"¨/¨"]
[8.1999999999999993]
[8.3000000000000007]
[8.1999999999999993]
[8.3000000000000007]